bitfinex/quotes_BTCUSD_20251226
["timestamp","ask_amount","ask_price","bid_price","bid_amount"]
[1766766035289,1.20816,87279.0,87263.0,0.06875712]
[1766766035512,1.20816,87279.0,87262.0,1.28492]
[1766766035735,0.01152,87280.0,87262.0,0.01145974]
[1766766035940,0.01152,87280.0,87264.0,1.28492]
[1766766036235,0.00030737,87283.0,87264.0,1.28492]
[1766766036434,0.01799012,87283.0,87264.0,1.28492]
[1766766036574,0.00030737,87283.0,87264.0,1.28492]
[1766766036780,0.00030737,87283.0,87263.0,1.28492]
[1766766036977,0.00030737,87283.0,87263.0,0.06875717]
[1766766037183,3.7e-07,87283.0,87272.0,1.28492]
[1766766037399,3.7e-07,87283.0,87272.0,1.29644]
[1766766037630,0.00037707,87273.0,87272.0,1.29644]
[1766766037797,7e-08,87273.0,87272.0,1.29644]
[1766766039516,7e-08,87273.0,87272.0,1.23866603]
[1766766044175,0.0002,87289.0,87276.0,0.0114579]
[1766766044176,3.7e-07,87289.0,87276.0,0.0114579]
[1766766044380,0.0002,87293.0,87276.0,0.0114579]
[1766766044381,3.7e-07,87291.0,87281.0,1.20721724]
[1766766044579,3.7e-07,87291.0,87283.0,1.20721698]
[1766766044779,3.7e-07,87291.0,87285.0,0.01145672]
[1766766045114,0.0002,87293.0,87286.0,0.01145659]
[1766766045318,0.96862684,87301.0,87292.0,0.0002]
[1766766045519,0.01071555,87300.0,87292.0,0.0002]
[1766766045722,0.01071555,87299.0,87285.0,1.13840709]
[1766766045977,0.01071586,87298.0,87285.0,1.13827309]
[1766766046168,0.96862684,87301.0,87285.0,1.13827309]
[1766766046793,0.153326,87302.0,87285.0,1.25251833]
[1766766047022,0.153326,87302.0,87285.0,1.26397505]
[1766766047377,0.153326,87302.0,87285.0,1.14972981]
[1766766047535,0.153326,87302.0,87287.0,1.19576]
[1766766047743,0.153326,87302.0,87288.0,1.19576]
[1766766048305,0.153326,87302.0,87288.0,1.20721632]
[1766766048491,0.01152,87303.0,87288.0,1.19576]
[1766766048637,0.114133,87302.0,87288.0,1.19576]
[1766766049043,0.114133,87302.0,87289.0,1.31000524]
[1766766049238,0.114133,87302.0,87289.0,1.19576]
[1766766052156,0.01152,87303.0,87293.0,0.01145567]
[1766766052334,0.0004,87314.0,87303.0,1.19576]
[1766766052538,0.14425978,87332.0,87303.0,1.19576]
[1766766052539,1.15621,87331.0,87306.0,0.01145396]
[1766766052739,0.01152,87324.0,87310.0,1.19576]
[1766766053200,0.06870151,87335.0,87306.0,0.06872336]
[1766766053201,1e-08,87321.0,87319.0,0.05726123]
[1766766053427,1e-08,87321.0,87300.0,0.45121861]
[1766766053428,0.01152,87337.0,87323.0,0.01145173]
[1766766053624,0.0002,87349.0,87332.0,1.19576]
[1766766053799,0.0002,87349.0,87333.0,0.01152]
[1766766054001,0.0002,87349.0,87324.0,0.11424524]
[1766766054002,0.01144859,87347.0,87324.0,0.11424524]
[1766766054255,0.01144859,87347.0,87289.0,0.1209]
[1766766054256,1.15621,87341.0,87318.0,0.01145239]
[1766766054509,0.01207804,87349.0,87283.0,0.1209]
[1766766054510,0.01207804,87349.0,87328.0,0.01145108]
[1766766054672,0.01152,87347.0,87328.0,1.20728]
[1766766054875,0.00010734,87347.0,87328.0,1.20728]
[1766766055035,1.15621,87337.0,87312.0,1.19576]
[1766766055239,1.15621,87337.0,87316.0,0.01145265]
[1766766055621,1.15621,87337.0,87314.0,0.01145291]
[1766766055792,1.15621,87337.0,87315.0,1.19576]
[1766766056009,1.15621,87337.0,87315.0,1.20721278]
[1766766056214,1.15621,87337.0,87316.0,1.31000524]
[1766766057247,1.15621,87337.0,87317.0,0.01152]
[1766766057435,1.15621,87337.0,87317.0,1.20728]
[1766766057636,1.15621,87337.0,87318.0,1.20728]
[1766766058617,0.01152,87340.0,87324.0,0.0114516]
[1766766058817,0.01152,87340.0,87325.0,1.20728]
[1766766059020,0.01162734,87347.0,87327.0,1.19576]
[1766766059261,0.01162734,87347.0,87329.0,1.19576]
[1766766059928,0.01162734,87347.0,87325.0,0.12576524]
[1766766059929,0.00025383,87333.0,87325.0,1.32152524]
[1766766060124,0.00025383,87333.0,87326.0,0.01152]
[1766766060355,0.00025383,87333.0,87326.0,1.20728]
[1766766060526,0.00025383,87333.0,87314.0,1.19576]
[1766766060727,0.00025383,87333.0,87315.0,0.01152]
[1766766060931,0.00025383,87333.0,87316.0,0.01152]
[1766766061136,1.15621,87331.0,87304.0,1.253031]
[1766766061342,1.15621,87331.0,87306.0,0.01145396]
[1766766061579,1.15621,87331.0,87307.0,0.02297383]
[1766766061748,1.15621,87331.0,87307.0,0.01152]
[1766766062092,1.15621,87329.0,87308.0,0.0114537]
[1766766062450,1.15621,87329.0,87307.0,1.21873383]
[1766766062451,1.15621,87329.0,87307.0,1.20728]
[1766766062858,1.15621,87329.0,87307.0,1.21873383]
[1766766063061,0.01170425,87333.0,87307.0,1.21873383]
[1766766063062,0.00025383,87333.0,87310.0,1.19576]
[1766766063274,0.47028759,87370.0,87330.0,0.0687049]
[1766766063275,0.495657,87346.0,87330.0,0.0687049]
[1766766063464,0.00010734,87347.0,87333.0,0.01145042]
[1766766063870,0.00010734,87347.0,87332.0,0.01145055]
[1766766064073,0.00010734,87347.0,87331.0,0.12576524]
[1766766064305,0.01155593,87347.0,87330.0,1.19576]
[1766766064512,0.000253,87331.0,87316.0,1.25302277]
[1766766064739,0.000253,87331.0,87318.0,0.01145239]
[1766766064952,0.01152,87336.0,87317.0,0.01152]
[1766766065327,0.01152,87336.0,87317.0,0.12576524]
[1766766065531,1.15621,87335.0,87317.0,0.01152]
[1766766065882,0.02297003,87336.0,87300.0,1.20721475]
[1766766065883,0.000253,87317.0,87300.0,1.20721475]
[1766766066082,1.16773,87324.0,87307.0,0.01145383]
[1766766066236,0.0114499,87337.0,87310.0,1.20721344]
[1766766066436,0.01152,87333.0,87311.0,0.11424524]
[1766766066634,1.15621,87332.0,87311.0,0.11424524]
[1766766066815,1.15621,87332.0,87310.0,0.01152]
[1766766067029,1.15631732,87332.0,87310.0,0.02297344]
[1766766067225,1.15631732,87332.0,87310.0,0.01152]
[1766766067425,1.15631732,87332.0,87310.0,0.02297344]
[1766766067768,1.15631732,87332.0,87310.0,0.01152]
[1766766067926,1.28201311,87332.0,87310.0,0.01152]
[1766766068122,1.16776787,87332.0,87310.0,0.01152]
[1766766068729,1.15631732,87332.0,87310.0,0.01152]
[1766766068935,1.16776787,87332.0,87310.0,0.0108972]
[1766766069136,1.16776787,87332.0,87304.0,0.05727067]
[1766766069137,1.15621,87328.0,87302.0,0.01145449]
[1766766069337,0.01155787,87332.0,87302.0,0.01145449]
[1766766069338,1.15621,87326.0,87303.0,0.01152]
[1766766069555,1.15621,87326.0,87305.0,0.01145409]
[1766766069764,1.15621,87326.0,87307.0,0.01145383]
[1766766069989,1.15621,87326.0,87308.0,0.0114537]
[1766766070340,1.15621,87326.0,87314.0,0.01145291]
[1766766070548,0.00010732,87332.0,87317.0,0.01145252]
[1766766070722,0.00010732,87332.0,87318.0,0.05726133]
[1766766070933,0.00010732,87332.0,87318.0,1.19576]
[1766766071537,0.00010732,87332.0,87319.0,1.19576]
[1766766071750,0.00010732,87332.0,87319.0,1.26447347]
[1766766071970,0.00010732,87332.0,87320.0,1.19576]
[1766766072114,0.00010732,87332.0,87321.0,1.31000524]
[1766766072326,0.000549,87321.0,87318.0,0.01152]
[1766766072581,1.15631732,87332.0,87318.0,0.01152]
[1766766072783,1.15631732,87332.0,87305.0,1.19576]
[1766766072784,1.15631732,87332.0,87305.0,1.20721409]
[1766766072983,1.15631732,87332.0,87307.0,0.05726861]
[1766766073184,1.15631732,87332.0,87308.0,1.19576]
[1766766073455,1.16766134,87326.0,87308.0,1.19576]
[1766766073585,0.01152,87325.0,87308.0,1.19576]
[1766766073991,0.01152,87325.0,87269.0,0.08638801]
[1766766073992,0.000549,87308.0,87290.0,1.17577606]
[1766766074218,0.01152,87313.0,87297.0,0.01145514]
[1766766074474,1.19202,87313.0,87296.0,0.01152]
[1766766075304,1.19202,87313.0,87294.0,0.01145554]
[1766766075507,1.19202,87313.0,87296.0,0.01152]
[1766766076318,1.19202,87313.0,87290.0,1.23305577]
[1766766076518,1.1805,87312.0,87291.0,0.01152]
[1766766076741,1.24921922,87312.0,87291.0,0.01152]
[1766766076942,1.1805,87312.0,87291.0,0.01152]
[1766766077293,1.1805,87312.0,87292.0,0.01152]
[1766766077556,1.1805,87312.0,87290.0,1.16432]
[1766766077789,1.1805,87309.0,87293.0,0.01152]
[1766766078739,0.01152,87313.0,87293.0,0.01152]
[1766766078957,0.01152,87318.0,87309.0,0.00055]
[1766766079172,0.01152,87319.0,87309.0,0.00055]
[1766766079376,0.01152,87319.0,87303.0,0.01152]
[1766766079579,0.01152,87319.0,87304.0,0.11424524]
[1766766079987,0.01152,87319.0,87303.0,0.01152]
[1766766080233,0.01152,87319.0,87302.0,0.01152]
[1766766080401,0.01071261,87318.0,87302.0,0.01152]
[1766766080623,0.01152,87319.0,87302.0,0.01152]
[1766766080902,0.0107126,87318.0,87302.0,0.01152]
[1766766081063,0.01152,87319.0,87302.0,0.01152]
[1766766081455,0.01071655,87318.0,87302.0,0.01152]
[1766766081658,0.01071655,87317.0,87302.0,0.01152]
[1766766081895,0.01152,87319.0,87302.0,0.01152]
[1766766082154,0.01071666,87318.0,87302.0,0.01152]
[1766766082390,0.11424524,87318.0,87302.0,0.01152]
[1766766082741,0.01152,87319.0,87302.0,0.01152]
[1766766083101,0.01072065,87318.0,87302.0,0.01152]
[1766766083222,1.19202,87319.0,87302.0,0.01152]
[1766766083422,1.1805,87317.0,87302.0,0.01152]
[1766766084598,1.19202,87317.0,87302.0,0.01152]
[1766766084842,0.11424524,87316.0,87302.0,0.01152]
[1766766085039,1.29474524,87316.0,87302.0,0.01152]
[1766766085243,1.1805,87328.0,87316.0,0.00055]
[1766766085372,0.01162732,87332.0,87318.0,0.05726146]
[1766766085561,0.01071785,87331.0,87321.0,0.01145199]
[1766766085759,0.01162732,87332.0,87323.0,0.06871041]
[1766766085998,0.00703228,87332.0,87324.0,0.0114516]
[1766766086317,0.01152,87343.0,87324.0,1.16432]
[1766766086473,0.01071695,87340.0,87324.0,1.16467804]
[1766766086679,0.01071695,87339.0,87324.0,1.16467804]
[1766766086902,0.01071695,87338.0,87324.0,0.00035804]
[1766766087104,0.01152,87343.0,87324.0,0.00035804]
[1766766087298,0.01071624,87340.0,87324.0,1.16467804]
[1766766087659,0.01152,87343.0,87325.0,0.01145147]
[1766766087660,0.01071624,87339.0,87325.0,0.01145147]
[1766766087833,0.01152,87343.0,87325.0,0.01145147]
[1766766088042,0.01071636,87340.0,87324.0,1.16467804]
[1766766088247,0.01071636,87339.0,87324.0,1.17612964]
[1766766088475,0.01071636,87338.0,87324.0,1.16467804]
[1766766088611,0.01152,87343.0,87321.0,0.01145199]
[1766766088612,0.00019096,87324.0,87321.0,0.01145199]
[1766766088811,0.00035753,87324.0,87320.0,0.01152]
[1766766089033,1.1805,87340.0,87321.0,0.12569723]
[1766766089256,0.01071645,87339.0,87321.0,0.01155931]
[1766766089555,0.01152,87343.0,87327.0,0.01145121]
[1766766089714,0.01071662,87340.0,87324.0,0.06870919]
[1766766089917,0.01152,87343.0,87325.0,0.01145147]
[1766766090193,0.01071661,87340.0,87326.0,0.01145134]
[1766766090386,0.01152,87343.0,87326.0,0.01145134]
[1766766090545,0.0107161,87340.0,87325.0,0.01145147]
[1766766090750,0.01152,87343.0,87325.0,0.11424524]
[1766766090945,0.0107161,87340.0,87326.0,0.01145134]
[1766766091264,0.01152,87343.0,87326.0,0.01145134]
[1766766091473,0.01152,87343.0,87325.0,0.01145147]
[1766766092304,0.01152,87343.0,87325.0,1.17577147]
[1766766092506,0.01152,87343.0,87325.0,1.23302864]
[1766766092729,0.01152,87343.0,87327.0,0.01145121]
[1766766092923,0.01144793,87352.0,87325.0,1.34727388]
[1766766092924,1.1805,87351.0,87341.0,1e-06]
[1766766093081,0.01071381,87350.0,87330.0,0.06870442]
[1766766093282,0.01152,87352.0,87330.0,0.06870442]
[1766766093283,0.01071381,87349.0,87331.0,0.01145068]
[1766766093506,1.1805,87351.0,87332.0,0.07222564]
[1766766093701,0.01071161,87350.0,87331.0,0.01145068]
[1766766093886,0.01071161,87349.0,87332.0,0.01145055]
[1766766094093,1.1805,87351.0,87336.0,0.01145003]
[1766766094490,1.1805,87351.0,87337.0,0.0114499]
[1766766094692,1.1805,87351.0,87324.0,0.0114516]
[1766766094869,1.1805,87342.0,87329.0,1e-08]
[1766766095274,1.1805,87342.0,87325.0,0.01838178]
[1766766095489,0.11424524,87350.0,87332.0,0.01145055]
[1766766095695,0.01152,87349.0,87333.0,0.01145042]
[1766766095949,0.01152,87349.0,87333.0,1.16432]
[1766766096150,0.01152,87349.0,87335.0,0.01145016]
[1766766096327,0.01152,87349.0,87335.0,1.16432]
[1766766096733,0.01152,87349.0,87337.0,1.16432]
[1766766096981,0.06507524,87370.0,87337.0,1.16432]
[1766766096982,0.11459808,87360.0,87349.0,0.000848]
[1766766097183,0.11459808,87360.0,87349.0,1.16432]
[1766766097373,0.11459808,87360.0,87349.0,1.17576832]
[1766766097585,0.110569,87366.0,87349.0,1.17576832]
[1766766097775,0.11424524,87366.0,87348.0,0.01152]
[1766766098085,1.1805,87365.0,87348.0,0.01152]
[1766766098641,0.00025103,87349.0,87348.0,0.01152]
[1766766098884,3e-08,87349.0,87331.0,0.22901122]
[1766766099095,0.000251,87348.0,87341.0,0.01152]
[1766766099433,3e-08,87349.0,87341.0,0.01152]
[1766766099635,3e-08,87349.0,87333.0,0.05725178]
[1766766099636,3e-08,87349.0,87335.0,0.01152]
[1766766100499,3e-08,87349.0,87336.0,0.01145003]
[1766766100703,3e-08,87349.0,87336.0,0.0687]
[1766766100861,3e-08,87349.0,87337.0,0.0114499]
[1766766101065,3e-08,87349.0,87335.0,0.01152]
[1766766101403,3e-08,87349.0,87337.0,0.0114499]
[1766766101631,3e-08,87349.0,87346.0,1.16432]
[1766766102192,3e-08,87349.0,87343.0,0.02296911]
[1766766102976,0.00918343,87341.0,87339.0,0.01144963]
[1766766103159,3e-08,87349.0,87343.0,0.01152]
[1766766103579,3e-08,87349.0,87344.0,0.01144898]
[1766766104127,3e-08,87349.0,87341.0,0.01152]
[1766766104373,3e-08,87349.0,87342.0,0.01144924]
[1766766104570,3e-08,87349.0,87338.0,0.01144976]
[1766766104571,0.11459808,87342.0,87327.0,0.01152]
[1766766104777,0.01145981,87341.0,87327.0,0.01152]
[1766766104991,0.11459808,87342.0,87326.0,0.01145134]
[1766766105132,0.11459808,87342.0,87327.0,0.02297121]
[1766766105331,0.11459808,87342.0,87329.0,0.01145094]
[1766766105531,3e-08,87349.0,87335.0,0.01145016]
[1766766105891,3e-08,87349.0,87336.0,1.26603003]
[1766766106093,3e-08,87349.0,87335.0,0.01145016]
[1766766106094,3e-08,87349.0,87338.0,1.24991798]
[1766766106249,3e-08,87349.0,87340.0,1.2660295]
[1766766106446,3e-08,87349.0,87340.0,1.24991785]
[1766766106669,0.182971,87365.0,87343.0,0.05724514]
[1766766106945,0.05398526,87364.0,87346.0,1.26602872]
[1766766107134,0.01152,87364.0,87346.0,1.26602872]
[1766766108151,0.01152,87364.0,87346.0,1.25458]
[1766766108975,0.02296636,87364.0,87346.0,1.25458]
[1766766109456,0.01144662,87362.0,87342.0,0.01152]
[1766766109654,0.12569199,87361.0,87341.0,0.01152]
[1766766109856,0.01144714,87358.0,87341.0,0.01152]
[1766766110090,1.26965688,87360.0,87339.0,0.01152]
[1766766110268,0.01144701,87359.0,87339.0,0.01152]
[1766766110481,1.26965714,87358.0,87339.0,0.01152]
[1766766110683,1.37245524,87358.0,87339.0,0.01152]
[1766766111837,0.000502,87339.0,87329.0,0.01145094]
[1766766112033,0.000502,87339.0,87330.0,0.02297081]
[1766766112363,1.25821,87353.0,87328.0,1.32328611]
[1766766112544,1.25821,87353.0,87331.0,0.01152]
[1766766112697,1.25821,87353.0,87332.0,0.01152]
[1766766112897,1.25821,87351.0,87320.0,0.01145213]
[1766766113099,0.000502,87332.0,87324.0,0.0114516]
[1766766113299,0.000502,87332.0,87323.0,0.05725828]
[1766766113300,1.26973,87344.0,87322.0,0.01145186]
[1766766113537,1.26973,87344.0,87323.0,0.01145173]
[1766766113741,1.26973,87344.0,87322.0,0.01145186]
[1766766114291,1.26973,87344.0,87323.0,0.01145173]
[1766766114502,1.26973,87344.0,87320.0,0.06881969]
[1766766114503,0.000502,87323.0,87320.0,0.00010732]
[1766766114872,0.0274537,87311.0,87308.0,0.03057361]
[1766766115061,0.02751388,87311.0,87304.0,0.01145422]
[1766766115263,0.02751388,87311.0,87305.0,0.01145409]
[1766766115483,0.02751388,87311.0,87304.0,0.01145422]
[1766766115484,3.88e-06,87311.0,87304.0,0.01145422]
[1766766115877,3.88e-06,87311.0,87303.0,1.25458]
[1766766116074,3.88e-06,87311.0,87289.0,0.03057361]
[1766766116075,3.88e-06,87311.0,87296.0,0.01152]
[1766766116275,3.88e-06,87311.0,87291.0,0.01152]
[1766766116276,0.11424912,87311.0,87291.0,0.01152]
[1766766116477,0.11424912,87311.0,87292.0,0.0114558]
[1766766116638,0.11424912,87311.0,87291.0,0.01152]
[1766766116840,0.11424912,87311.0,87290.0,1.25458]
[1766766117041,0.11424912,87311.0,87290.0,1.26603606]
[1766766117243,0.11424524,87310.0,87290.0,1.25458]
[1766766117445,0.01145567,87293.0,87291.0,0.0687356]
[1766766117650,0.07924524,87310.0,87293.0,0.00055]
[1766766117850,0.07924524,87310.0,87290.0,1.25458]
[1766766118156,0.03313719,87309.0,87290.0,1.26603606]
[1766766118559,0.03313719,87309.0,87292.0,0.0114558]
[1766766118764,1.26973,87308.0,87280.0,1.25458]
[1766766118897,0.000549,87292.0,87280.0,1.25458]
[1766766119241,0.01152,87294.0,87280.0,1.25458]
[1766766119414,0.01097,87294.0,87280.0,1.23264626]
[1766766119638,0.01097,87294.0,87263.0,0.04584]
[1766766119639,1.32645787,87294.0,87269.0,1.25458]
[1766766119934,1.26966593,87291.0,87269.0,1.25458]
[1766766120140,1.25821,87291.0,87269.0,1.25458]
[1766766121246,0.01145619,87289.0,87269.0,1.25458]
[1766766121384,0.06873638,87290.0,87269.0,1.25458]
[1766766121385,0.01145606,87290.0,87269.0,1.25458]
[1766766121589,1.26966593,87291.0,87269.0,1.25458]
[1766766121590,1.25821,87291.0,87269.0,1.25458]
[1766766121813,0.09958371,87290.0,87269.0,1.25458]
[1766766122016,0.08812765,87290.0,87269.0,1.25458]
[1766766122211,1.25821,87291.0,87269.0,1.26603882]
[1766766122433,1.25821,87291.0,87269.0,1.25458]
[1766766122634,0.02242554,87294.0,87269.0,1.26603882]
[1766766122843,0.01097,87294.0,87276.0,0.05728909]
[1766766123049,0.11459808,87300.0,87277.0,1.26603777]
[1766766123298,0.12576524,87299.0,87280.0,0.01145737]
[1766766123571,0.12576524,87299.0,87279.0,1.2660375]
[1766766123770,0.12576524,87299.0,87279.0,1.25458]
[1766766124333,0.13722012,87299.0,87279.0,1.25458]
[1766766124673,0.01145514,87297.0,87279.0,1.25458]
[1766766124875,0.18297539,87298.0,87269.0,1.2661]
[1766766124876,0.001099,87279.0,87269.0,1.2661]
[1766766125240,0.01152,87286.0,87270.0,0.01145869]
[1766766125459,0.01152,87286.0,87271.0,1.26603856]
[1766766126190,0.01152,87286.0,87271.0,1.32368886]
[1766766126340,0.01152,87286.0,87274.0,0.01145816]
[1766766126729,0.01152,87286.0,87276.0,0.0114579]
[1766766127132,0.00661393,87286.0,87276.0,0.06874739]
[1766766127332,0.00661393,87286.0,87276.0,0.0114579]
[1766766128366,0.00661393,87286.0,87277.0,0.01145777]
[1766766129479,0.00661393,87286.0,87276.0,0.0114579]
[1766766129885,0.00661393,87286.0,87272.0,1.25458]
[1766766130099,0.000549,87276.0,87272.0,1.25458]
[1766766130296,0.00661393,87286.0,87272.0,1.25458]
[1766766131192,0.00661393,87286.0,87271.0,0.00035753]
[1766766131193,0.000549,87272.0,87271.0,0.00035753]
[1766766131440,0.01807052,87286.0,87271.0,5.3e-07]
[1766766131615,1.26966698,87283.0,87271.0,5.3e-07]
[1766766131910,0.05728447,87284.0,87271.0,5.3e-07]
[1766766131911,1.25821,87280.0,87271.0,5.3e-07]
[1766766133808,1.26966764,87278.0,87255.0,0.01152]
[1766766134014,0.11424524,87285.0,87255.0,0.01152]
[1766766134015,1.14955,87296.0,87274.0,1.14543]
[1766766134214,0.952466,87294.0,87274.0,1.14543]
[1766766134423,0.218511,87293.0,87279.0,0.0114575]
[1766766134588,0.01152,87293.0,87283.0,0.01145698]
[1766766134943,0.01152,87298.0,87284.0,1.14543]
[1766766135492,0.11424524,87297.0,87278.0,0.01145764]
[1766766135712,0.01152,87298.0,87279.0,0.0114575]
[1766766135943,0.01152,87298.0,87282.0,0.01145711]
[1766766136171,0.01152,87298.0,87283.0,0.01145698]
[1766766136306,0.01152,87298.0,87284.0,0.01145685]
[1766766136506,0.01152,87298.0,87282.0,1.15688711]
[1766766136845,0.01152,87298.0,87283.0,0.11424524]
[1766766137008,0.01152,87298.0,87282.0,1.14543]
[1766766138331,0.01152,87298.0,87289.0,0.01145619]
[1766766138509,1.14955,87313.0,87292.0,0.0114558]
[1766766138510,0.01152,87302.0,87292.0,0.0114558]
[1766766139023,0.01152,87302.0,87290.0,1.14543]
[1766766139429,1.14955,87313.0,87294.0,0.01145554]
[1766766139607,1.14955,87331.0,87308.0,0.0114537]
[1766766139952,1.14955,87331.0,87316.0,0.01145265]
[1766766139953,0.01152,87328.0,87316.0,0.01145265]
[1766766140251,0.0094197,87328.0,87316.0,0.05726327]
[1766766140450,0.0094197,87328.0,87314.0,1.14543]
[1766766140826,0.00977746,87328.0,87314.0,1.14543]
[1766766141029,0.00977746,87328.0,87314.0,1.15688291]
[1766766141232,0.00977746,87328.0,87316.0,0.01145265]
[1766766141737,1.19539,87351.0,87328.0,0.01145108]
[1766766141985,1.19539,87351.0,87323.0,1.14543]
[1766766141986,0.203735,87349.0,87327.0,0.01145121]
[1766766142164,0.372388,87345.0,87323.0,1.14543]
[1766766142368,0.01067463,87344.0,87323.0,1.14543]
[1766766142588,0.01152,87350.0,87327.0,0.01145121]
[1766766142844,0.01067956,87349.0,87331.0,0.01145068]
[1766766142973,0.01067956,87349.0,87330.0,1.14543]
[1766766142974,0.01067956,87348.0,87330.0,1.14543]
[1766766143178,0.341248,87346.0,87330.0,1.14543]
[1766766143385,0.11054,87344.0,87330.0,1.14543]
[1766766143586,0.01152,87350.0,87330.0,1.14543]
[1766766143813,0.268961,87348.0,87330.0,1.14543]
[1766766144017,0.182223,87349.0,87330.0,1.14543]
[1766766144179,0.01152,87350.0,87330.0,1.15688081]
[1766766144382,0.12576524,87350.0,87330.0,1.14543]
[1766766145124,0.12576524,87350.0,87330.0,1.15688081]
[1766766146237,0.12576524,87350.0,87330.0,1.14543]
[1766766147449,0.12576524,87350.0,87331.0,0.01145068]
[1766766147953,0.12576524,87350.0,87330.0,1.14543]
[1766766148331,1.14955,87348.0,87323.0,0.01145173]
[1766766148684,1.16099859,87347.0,87324.0,0.01152]
[1766766148887,1.14955,87347.0,87324.0,0.0229716]
[1766766149233,1.14955,87347.0,87325.0,0.01145147]
[1766766149891,1.14955,87347.0,87326.0,0.01145134]
[1766766150053,0.11424524,87346.0,87324.0,0.0229716]
[1766766150381,0.11424524,87346.0,87325.0,0.01145147]
[1766766150583,0.11424524,87346.0,87324.0,0.0229716]
[1766766150784,0.11424524,87346.0,87325.0,0.01145147]
[1766766150946,0.11424524,87346.0,87326.0,0.06870805]
[1766766151149,0.11424524,87345.0,87327.0,0.01145121]
[1766766151487,0.11424524,87345.0,87328.0,0.01145108]
[1766766151705,0.11424524,87345.0,87326.0,0.01152]
[1766766152002,0.11424524,87345.0,87323.0,0.01145173]
[1766766152003,0.11424524,87345.0,87324.0,1.14543]
[1766766152173,1.27524409,87345.0,87324.0,1.14543]
[1766766152349,1.14955,87345.0,87324.0,1.14543]
[1766766152550,1.14955,87345.0,87324.0,1.1568816]
[1766766152733,1.14955,87345.0,87324.0,1.14543]
[1766766152934,1.14955,87343.0,87322.0,0.01152]
[1766766153138,1.14955,87341.0,87326.0,0.06870803]
[1766766153392,0.01152,87340.0,87325.0,0.01145147]
[1766766153557,0.01152,87340.0,87322.0,0.01152]
[1766766153963,0.01152,87340.0,87323.0,0.06871013]
[1766766154167,0.01152,87340.0,87325.0,0.01145147]
[1766766154567,0.11424524,87339.0,87325.0,0.01145147]
[1766766154969,0.01152,87340.0,87323.0,1.21414013]
[1766766154970,0.01152,87340.0,87326.0,0.01145134]
[1766766155296,0.01152,87340.0,87322.0,0.01152]
[1766766155297,0.01152,87344.0,87332.0,1.15688055]
[1766766155679,0.01152,87344.0,87332.0,1.14543]
[1766766155896,0.01152,87344.0,87332.0,1.15688055]
[1766766156605,0.01152,87344.0,87332.0,1.14543]
[1766766156956,0.01152,87344.0,87332.0,1.15688055]
[1766766157158,0.01152,87344.0,87332.0,1.14543]
[1766766160863,0.01152,87344.0,87332.0,1.145217]
[1766766161472,0.01152,87344.0,87307.0,0.04584]
[1766766161473,0.000549,87332.0,87327.0,0.01152]
[1766766161888,1.27531524,87344.0,87327.0,0.01152]
[1766766162069,1.27531524,87344.0,87318.0,0.06871406]
[1766766162270,1.27531524,87344.0,87321.0,1.14543]
[1766766162271,1.28676422,87344.0,87321.0,1.14543]
[1766766162779,0.01144911,87343.0,87321.0,1.14543]
[1766766162951,1.14955,87342.0,87321.0,1.14543]
[1766766163181,1.14955,87342.0,87323.0,0.01145173]
[1766766163382,1.14955,87342.0,87321.0,1.14543]
[1766766163627,0.01152,87344.0,87330.0,1.14543]
[1766766163979,1.18119,87343.0,87325.0,0.01145147]
[1766766164185,1.18119,87343.0,87323.0,0.01145173]
[1766766164186,1.29543524,87343.0,87323.0,0.01145173]
[1766766164393,1.18119,87343.0,87325.0,0.01145147]
[1766766165108,1.18119,87343.0,87324.0,0.0114516]
[1766766165315,1.18119,87343.0,87325.0,0.01145147]
[1766766165520,1.18119,87343.0,87326.0,0.01145134]
[1766766165664,1.18119,87343.0,87324.0,0.0114516]
[1766766165665,1.29543524,87343.0,87324.0,0.0114516]
[1766766166315,1.29543524,87343.0,87323.0,0.01145173]
[1766766166616,1.1926395,87340.0,87316.0,0.01145265]
[1766766166795,1.18119,87340.0,87317.0,0.02297252]
[1766766167204,1.18119,87340.0,87318.0,0.01145239]
[1766766167414,0.11424524,87339.0,87318.0,0.01145239]
[1766766167759,0.11424524,87339.0,87317.0,0.02297252]
[1766766167760,1.29543524,87339.0,87317.0,0.02297252]
[1766766167954,1.29543524,87339.0,87323.0,0.01145173]
[1766766168166,1.29543524,87339.0,87321.0,0.01145199]
[1766766168383,0.01071762,87338.0,87321.0,0.06871163]
[1766766168651,0.12576524,87337.0,87322.0,0.01145186]
[1766766169103,0.12576524,87337.0,87321.0,0.01145199]
[1766766169330,0.01073067,87336.0,87322.0,0.01145186]
[1766766169530,0.0107307,87335.0,87319.0,0.01145226]
[1766766169702,0.12576524,87337.0,87320.0,0.01145213]
[1766766169703,0.11424524,87334.0,87320.0,0.01145213]
[1766766170306,0.11424524,87334.0,87318.0,0.01152]
[1766766171193,0.11424524,87334.0,87318.0,1.16588]
[1766766171355,1.2404982,87333.0,87319.0,0.01145226]
[1766766171567,1.22976,87333.0,87319.0,0.01145226]
[1766766171785,1.22976,87333.0,87318.0,0.02297239]
[1766766171996,1.22976,87333.0,87319.0,0.01145226]
[1766766173085,1.22976,87333.0,87321.0,0.01145199]
[1766766173306,0.01152,87337.0,87321.0,0.01145199]
[1766766173307,0.11424524,87332.0,87321.0,0.01145199]
[1766766173524,0.01152,87337.0,87321.0,0.01145199]
[1766766173776,0.01074068,87336.0,87320.0,0.06871242]
[1766766173955,0.01074068,87335.0,87321.0,0.01145199]
[1766766174117,0.01152,87337.0,87320.0,0.06871242]
[1766766174118,0.01074068,87334.0,87320.0,0.06871242]
[1766766174307,0.01074068,87333.0,87318.0,1.17733239]
[1766766174507,0.01152,87337.0,87318.0,1.16588]
[1766766174508,1.2527299,87337.0,87318.0,1.16588]
[1766766174710,1.2527299,87337.0,87308.0,0.04106402]
[1766766174711,0.000549,87318.0,87312.0,0.03050274]
[1766766174967,0.000549,87318.0,87307.0,1.19542402]
[1766766174968,1.24128,87326.0,87310.0,0.03050274]
[1766766175170,1.24128,87326.0,87309.0,0.01152]
[1766766175171,0.12498659,87325.0,87309.0,0.01152]
[1766766175319,0.01074135,87324.0,87309.0,0.01152]
[1766766175953,0.01074135,87324.0,87309.0,0.01187776]
[1766766176142,0.01074135,87324.0,87310.0,0.01145344]
[1766766176350,0.12498659,87324.0,87309.0,1.16623776]
[1766766176526,0.11424524,87324.0,87309.0,1.16623776]